[Event "10th Cherry Blossom Classic 2023"]
[Site "Dulles"]
[Date "2023.05.26"]
[Round "2.18"]
[White "Matviishen, Viktor"]
[Black "Altman, Joshua"]
[Result "1-0"]
[ECO "E16"]
[WhiteElo "2538"]
[BlackElo "2120"]
[Annotator "TA"]
[PlyCount "125"]
[EventDate "2023.05.24"]
[EventType "swiss"]
[EventCountry "USA"]
[SourceTitle "playchess.com"]
[Source "ChessBase"]
[SourceQuality "1"]
[TimeControl "5400+30"]

{[%evp 17,125,20,20,16,74,87,95,84,117,96,122,125,143,101,101,101,93,84,86,83,83,63,113,110,116,77,93,86,72,96,168,153,575,566,627,622,567,547,958,133,133,133,133,133,133,133,133,133,135,135,134,56,57,52,39,44,241,231,177,151,146,153,200,193,365,358,387,386,771,742,936,883,5948,4952,29971,29971,29971,29972,29970,29958,29973,29966,29975,29976,29974,29974,29977,29978,29978,29979,29979,29977,29981,29982,29981,29982,29986,29987,29987,29985,29985,29986,29986,29987,29987,29988,29988,29987,29992,29993]} 1. d4 {[%emt 0:00:03]} Nf6 {[%emt 0:00:03]} 2. c4 {[%emt 0:00:04]} e6 {[%emt 0:00:03]} 3. Nf3 {[%emt 0:00:06]} b6 {[%emt 0:00:03]} 4. g3 {[%emt 0:00:06]} Bb7 {[%emt 0:00:02]} 5. Bg2 {[%emt 0:00:06]} Bb4+ {[%emt 0:00:05]} 6. Nbd2 {[%emt 0:00:05]} O-O {[%emt 0:00:16]} 7. O-O {[%emt 0:00:07]} Bxd2 {[%emt 0:00:20]} 8. Qxd2 {[%emt 0:00:05]} d6 {[%emt 0:00:40]} 9. b3 {[%emt 0:00:08]} Nbd7 {[%emt 0:00:22]} 10. Bb2 {[%emt 0:00:08][%cal Od4d5] E16: Queen's Indian: 4 g3 Bb7 5 Bg2 Bb4+.} h6 {[%emt 0:01:59] [#]} (10... Re8 $11 {remains equal.}) 11. d5 $146 {[%emt 0:01:10]} ({Predecessor:} 11. Rfe1 Be4 12. Qc3 c6 13. Nd2 Bxg2 14. Kxg2 d5 15. e4 Qb8 16. Rac1 Rc8 17. Qf3 {0-1 Deac,B (2692)-Martinez Alcantara,J (2591) Titled Tuesday intern op 12th Jul Early blitz 2022 (7)}) 11... e5 {[%emt 0:08:02][%cal Ob6b5]} (11... Rb8 12. Nh4) 12. Nh4 {[%emt 0:00:23] White is better.} a5 {[%emt 0:01:55]} 13. f4 {[%emt 0:01:50]} e4 {[%emt 0:04:32]} 14. Nf5 {[%emt 0:00:52][%cal Og3g4]} Nc5 {[%emt 0:07:45]} 15. Ne3 {[%emt 0:00:57] White has more active pieces.} Bc8 {[%emt 0:04:20]} 16. h3 {[%emt 0:00:09]} Ne8 {[%emt 0:13:23]} 17. Qe1 {[%emt 0:04:18]} f5 {[%emt 0:05:49]} 18. g4 {[%emt 0:00:35]} Bd7 {[%emt 0:19:54]} 19. Qg3 {[%emt 0:01:34]} Nf6 {[%emt 0:08:46]} (19... Qe7 $1 $14) 20. Kh2 {[%emt 0:17:13]} Qe8 {[%emt 0:10:10]} 21. Rg1 {[%emt 0:19:02]} (21. gxf5 {seems wilder.} Nh5 22. Qg4 Qf7 23. Bd4) 21... Qg6 {[%emt 0:04:15]} 22. Bf1 {[%emt 0:03:28]} (22. Nxf5 {simplifies} Bxf5 23. gxf5 Qxg3+ 24. Kxg3 b5 25. cxb5 Rab8 26. e3) 22... fxg4 {[%emt 0:00:50]} 23. hxg4 {[%emt 0:00:10]} h5 {[%emt 0:03:57]} (23... Kf7 $16) 24. f5 $18 {[%emt 0:05:34]} Nxg4+ $2 {[%emt 0:02:37]} (24... Qh7 $16) 25. Nxg4 {[%emt 0:00:05]} Qxg4 {[%emt 0:00:05]} 26. Qe3 {[%emt 0:00:43]} Qh4+ {[%emt 0:00:22]} 27. Bh3 {[%emt 0:00:01]} Rf7 {[%emt 0:00:51]} 28. Raf1 {[%emt 0:01:05]} (28. Qh6 $18 {[%cal Rg1g7]} Qxh3+ {[%mdl 64] Remove Defender} 29. Kxh3 Bxf5+ 30. Kh2) 28... Bxf5 $16 {[%emt 0:01:27] [#]} 29. Qc3 {[%emt 0:16:07][%cal Rg1g7] Some like it hot} Qxh3+ {[%emt 0:00:40]} 30. Qxh3 {[%emt 0:00:02]} Bxh3 {[%emt 0:00:05]} 31. Rxf7 {[%emt 0:00:01][%mdl 64] Remove Defender} Kxf7 {[%emt 0:00:07]} 32. Rxg7+ {[%emt 0:00:02]} Kf8 {[%emt 0:00:05]} 33. Kxh3 {[%emt 0:00:02][%mdl 4096] Endgame KRB-KRN} Rc8 {[%emt 0:02:23]} 34. Kh4 {[%emt 0:02:03]} ({Better is} 34. Rh7 $16 {Threatens to win with Rh8+.} Ke8 35. Rxh5) 34... c6 $1 $14 {[%emt 0:00:19]} 35. Kxh5 {[%emt 0:00:31]} cxd5 {[%emt 0:00:26]} 36. cxd5 {[%emt 0:00:01] Strongly threatening Rh7.} Rd8 $2 {[%emt 0:00:36]} ({Black should play} 36... Na6 $1 $14) 37. Rh7 {[%emt 0:01:37] Kg6 is the strong threat.} Rd7 {[%emt 0:00:18]} 38. Rh8+ {[%emt 0:00:02]} Kf7 {[%emt 0:00:12]} 39. Kg5 {[%emt 0:00:01]} e3 {[%emt 0:01:02]} (39... Na6 $16 {is a better defense.} 40. Bd4 b5) 40. Kf5 {[%emt 0:00:48]} b5 $2 {[%emt 0:00:43]} (40... a4 41. bxa4 Nxa4) 41. Ra8 $18 {[%emt 0:01:45]} b4 {[%emt 0:00:34][%cal Oc5d3]} 42. Bd4 {[%emt 0:00:17] Hoping for Bxc5.} ({Not} 42. Rxa5 Nd3 $18) 42... a4 $2 {[%emt 0:00:32]} (42... Rc7 43. Rxa5 Nd7) 43. bxa4 {[%emt 0:00:14]} b3 {[%emt 0:00:09]} 44. axb3 {[%emt 0:00:05]} (44. Bxe3 $2 {perishes.} b2 45. Rb8 Nb7 $19) 44... Nxb3 {[%emt 0:00:04]} 45. Bxe3 {[%emt 0:00:09] Threatening mate with Ra7.} Re7 {[%emt 0:00:32]} 46. Ra7 {[%emt 0:00:10] White mates.} Rxa7 {[%emt 0:00:20]} 47. Bxa7 {[%emt 0:00:01] KB-KN} Ke7 {[%emt 0:00:24]} 48. Ke4 {[%emt 0:01:07]} Kd7 {[%emt 0:00:55]} 49. Kd3 {[%emt 0:00:26]} Kc7 {[%emt 0:00:21]} 50. Kc2 {[%emt 0:00:39]} Na5 {[%emt 0:00:06]} 51. Kc3 {[%emt 0:00:08]} Nb7 {[%emt 0:00:31]} 52. Kb4 {[%emt 0:00:28]} Nd8 {[%emt 0:00:04]} 53. Kb5 {[%emt 0:00:17]} Nf7 {[%emt 0:00:13]} 54. a5 {[%emt 0:00:14][%cal Ba4a5,Ba5a6,Ba6a7][%mdl 32]} Ng5 {[%emt 0:00:13]} 55. Bb6+ {[%emt 0:01:00]} Kb7 {[%emt 0:00:10]} 56. a6+ {[%emt 0:00:02]} Ka8 {[%emt 0:00:04]} 57. Kc6 {[%emt 0:00:08]} Ne4 {[%emt 0:00:14]} 58. e3 {[%emt 0:00:45]} Kb8 {[%emt 0:01:09]} 59. a7+ {[%emt 0:00:10]} Ka8 {[%emt 0:00:03]} 60. Bd4 {[%emt 0:00:06]} Ng3 {[%emt 0:00:24]} 61. Kxd6 {[%emt 0:00:08]} Nf5+ {[%emt 0:00:06]} 62. Ke6 {[%emt 0:00:06]} Ng3 {[%emt 0:00:42]} 63. d6 {[%emt 0:00:06] Weighted Error Value: White=0.20 (precise) /Black=0.47} 1-0

[Event "10th Cherry Blossom Classic 2023"]
[Site "Dulles"]
[Date "2023.05.26"]
[Round "2.19"]
[White "Martin, Sam B"]
[Black "Williams, Justus"]
[Result "0-1"]
[ECO "A54"]
[WhiteElo "2067"]
[BlackElo "2396"]
[Annotator "TA"]
[PlyCount "94"]
[EventDate "2023.05.24"]
[EventType "swiss"]
[EventCountry "USA"]
[SourceTitle "playchess.com"]
[Source "ChessBase"]
[SourceQuality "1"]
[TimeControl "5400+30"]

{[%evp 11,93,61,83,40,42,6,35,27,68,73,120,105,153,155,315,324,335,348,365,330,329,356,313,356,367,205,186,164,181,139,137,131,175,154,163,71,177,184,155,52,255,169,209,151,151,168,172,165,271,251,673,150,123,0,108,0,29,12,135,0,1000,972,972,951,705,600,593,562,691,537,545,545,532,526,509,500,461,8,38,-205,-194,-1034,-1027,-29999]} 1. d4 {[%emt 0:00:03]} Nf6 {[%emt 0:02:40]} 2. c4 {[%emt 0:00:10]} d6 {[%emt 0:00:54]} 3. Nc3 {[%emt 0:00:55]} e5 {[%emt 0:00:45]} 4. Nf3 {[%emt 0:02:38]} e4 {[%emt 0:02:30]} 5. Ng5 {[%emt 0:00:15]} Qe7 {[%emt 0:02:19]} 6. Qc2 {[%emt 0:13:40]} Bf5 {[%emt 0:01:03]} 7. h4 {[%emt 0:02:45] A54: Old Indian Defence with Nf3, but without e4.} h6 {[%emt 0:02:27]} 8. Nh3 {[%emt 0:01:25]} (8. g4 $5 {[%cal Rg4f5]} Bg6 9. Nh3 $11 (9. Qa4+ Qd7 $15)) 8... Nc6 {[%emt 0:00:25]} 9. e3 {[%emt 0:01:45] White is slightly better.} g5 {[%emt 0:02:48]} 10. Nd5 {[%emt 0:10:09]} Qd8 {[%emt 0:00:39] [#]} (10... Nxd5 $142 11. cxd5 Nb8) 11. f3 $146 {[%emt 0:06:08]} ({Predecessor:} 11. Bd2 Bg7 12. O-O-O Qd7 13. Be2 Nxd5 14. cxd5 Nxd4 15. exd4 e3 16. Bd3 Bxd3 17. Qxd3 exd2+ 18. Qxd2 {1-0 Lautier,J (2672)-Glek,I (2575) Corsica op rapid 2005 (3)}) 11... Bg6 {[%emt 0:03:48]} (11... Bg7 $142) 12. fxe4 $1 {[%emt 0:05:39]} Nxe4 $2 {[%emt 0:12:13]} (12... Nxd5 $16 {was called for.} 13. cxd5 Ne7) 13. Bd3 $18 {[%emt 0:05:23]} f5 {[%emt 0:07:48] [#]} 14. g4 $1 {[%emt 0:02:29][%cal Bg2g4,Bg4f5,Bf5e6][%mdl 544] aiming for gxf5.} Ng3 {[%emt 0:01:02]} 15. gxf5 {[%emt 0:16:42]} Bf7 {[%emt 0:01:02]} 16. Rg1 {[%emt 0:00:35]} gxh4 {[%emt 0:00:53]} 17. Nhf4 {[%emt 0:01:43]} Bg7 {[%emt 0:02:47]} 18. Ne6 {[%emt 0:06:26]} (18. Bd2 $142) 18... Bxe6 {[%emt 0:00:28]} 19. fxe6 {[%emt 0:00:02]} O-O {[%emt 0:00:15]} 20. Qg2 {[%emt 0:05:09]} Qg5 {[%emt 0:03:14]} 21. Bd2 {[%emt 0:02:22] 0-0-0 would be deadly.} (21. Nxc7 $2 Qa5+ 22. Bd2 Qxc7 $19) 21... Rae8 {[%emt 0:14:12][%cal Oc6d4]} 22. e7 {[%emt 0:02:05]} (22. Nxc7 Nb4 23. Be4 (23. Bxb4 $2 Qxe3+ 24. Be2 Bxd4 $19) 23... Re7 $17) 22... Rf7 {[%emt 0:02:03][%cal Oc6d4]} 23. Qh3 {[%emt 0:01:02]} (23. Nxc7 Rexe7 24. Nd5 Nxd4 25. Nxe7+ Qxe7 $17) (23. O-O-O $18 {has better winning chances.}) 23... Nxe7 {[%emt 0:05:52]} (23... Nxd4 $2 24. exd4 Rfxe7+ 25. Kd1 $18) (23... h5 $16) 24. Nxc7 {[%emt 0:06:03]} (24. Qe6 c6 25. Nf4 Qf6 $11) 24... Rc8 {[%emt 0:04:14] [#]} 25. Nd5 {[%emt 0:00:30]} Rcf8 $2 {[%emt 0:00:37]} ({Black should try} 25... Re8 $1 $14 26. e4 (26. Qe6 Qh5 $14) 26... Qg6 27. Qxh4 Rf3) 26. Nf4 {[%emt 0:01:00]} Bxd4 {[%emt 0:03:12]} 27. O-O-O {[%emt 0:05:07]} (27. exd4 $6 Rxf4 28. Qe6+ Kh8 $16) 27... Rxf4 {[%emt 0:03:29]} 28. exf4 {[%emt 0:00:22]} Qf6 {[%emt 0:00:13] Against Qe6+} 29. Rge1 {[%emt 0:01:10]} Bxb2+ {[%emt 0:00:43]} (29... Nef5 $142) 30. Kc2 $1 {[%emt 0:00:01]} Nc6 $2 {[%emt 0:00:17]} (30... Nef5 31. Rb1 Bd4 32. Rxb7 Kh8) 31. Qd7 $2 {[%emt 0:00:38]} (31. Rb1 $18 {is more deadly.} Ba1 32. Rxa1 Nd4+ 33. Kb2 Nb5+ 34. Kb3 Nd4+ 35. Ka3) 31... Qg7 $16 {[%emt 0:01:55]} 32. Qh3 {[%emt 0:00:51]} (32. Qxd6 $16 {Black must now prevent Qd5+.} Bf6 33. Qd5+ Kh8 34. Re3) 32... Bf6 {[%emt 0:00:39] [#]} (32... Qf6 $1 $11 33. Rb1 (33. Qd7 Qg7 $16) 33... Ba1 34. Rxa1 Nd4+ 35. Kb2 Ne6+ 36. Bc3 Nxf4 37. Bxf6 Nxh3 38. Bxh4 Nf5) 33. Rg1 {[%emt 0:01:03]} ({White should play} 33. Re3 $1 $16 {Threatens to win with Rg1.} Qf7 34. Rg1 Nd4+ 35. Kc1) 33... Nd4+ {[%emt 0:04:39]} 34. Kb1 {[%emt 0:00:01] Rg2 is the strong threat.} Qc7 {[%emt 0:00:20] [#]} (34... Nf3 $11 {keeps the balance.}) 35. Rde1 {[%emt 0:01:10]} ({Better is} 35. Rxg3+ $1 $16 hxg3 36. Qxg3+ Qg7 37. Qe3) 35... Kh8 $2 {[%emt 0:01:52][%mdl 8192]} (35... Bg7 $11) 36. Rxg3 $1 $18 {[%emt 0:00:11]} hxg3 {[%emt 0:01:04]} 37. Qxh6+ {[%emt 0:00:02]} Kg8 {[%emt 0:00:22]} 38. Be4 {[%emt 0:01:14] Intending Bd5+ and mate.} (38. Qg6+ Qg7 $18) 38... Ne6 {[%emt 0:03:39]} 39. Bd5 {[%emt 0:00:26] This pair of bishops is nice. Black is weak on the light squares} Qb6+ {[%emt 0:00:08]} 40. Kc1 {[%emt 0:00:15]} Qb2+ {[%emt 0:00:27]} 41. Kd1 {[%emt 0:00:01]} Qb1+ {[%emt 0:00:16]} 42. Ke2 {[%emt 0:00:24]} Qf5 {[%emt 0:00:36]} 43. Kf3 {[%emt 0:00:49]} Re8 {[%emt 0:00:22]} 44. Kxg3 $2 {[%emt 0:01:10]} (44. Bxb7 $2 Bg7 45. Rxe6 Bxh6 $19) (44. Kg2 $18) 44... Kf7 $1 $11 {[%emt 0:00:29]} 45. Be4 $2 {[%emt 0:00:24]} (45. Bxb7 $2 {loses.} Qd3+ 46. Be3 Rh8 $19) (45. Qh3 $14 {keeps the upper hand.} Rg8+ 46. Kh2) 45... Rg8+ $19 {[%emt 0:00:20]} 46. Kf2 $2 {[%emt 0:00:03]} (46. Kh2 Qg4 47. Qh7+ (47. Bxb7 $2 {perishes.} Qg3+ 48. Kh1 Rh8 $19) (47. f5 $2 Be5+ 48. Kh1 Rh8 $19) 47... Kf8 48. Qh6+ Ke7 49. Bd5) 46... Bd4+ {[%emt 0:00:29]} 47. Kf3 {[%emt 0:00:31]} Qg4# {[%emt 0:01:45] Ingenious play by Williams!   Weighted Error Value: White=0.91/Black=0.57} 0-1

[Event "10th Cherry Blossom Classic 2023"]
[Site "Dulles"]
[Date "2023.05.26"]
[Round "2.20"]
[White "Tahmassebi, Bijan"]
[Black "Senft, Sean"]
[Result "0-1"]
[ECO "B48"]
[WhiteElo "2201"]
[BlackElo "2089"]
[Annotator "TA"]
[PlyCount "94"]
[EventDate "2023.05.24"]
[EventType "swiss"]
[EventCountry "USA"]
[SourceTitle "playchess.com"]
[Source "ChessBase"]
[SourceQuality "1"]
[TimeControl "5400+30"]

{[%evp 11,94,42,51,21,23,27,31,29,28,37,41,38,30,-76,-90,-102,-96,-82,-102,-125,-129,-159,-152,-201,-152,-155,-153,-157,-152,-143,-158,-148,-156,-152,-154,-159,-172,-163,-181,-158,-168,-169,-128,-133,-37,-30,-37,-370,-370,-733,-270,-1110,-1095,-1001,-139,-862,-71,-289,-288,-272,-272,-239,-226,-447,-413,-253,0,0,0,0,0,0,0,-29979,-29979,-29981,-29982,-29986,-29987,-29992,-29993,-29993,-29994,-29998,-29999]} 1. e4 {[%emt 0:00:03]} c5 {[%emt 0:03:15]} 2. Nf3 {[%emt 0:00:06]} e6 {[%emt 0:00:07]} 3. d4 {[%emt 0:00:04]} cxd4 {[%emt 0:00:08]} 4. Nxd4 {[%emt 0:00:03]} Nc6 {[%emt 0:00:16][%cal Bb8c6,Bc6e5,Be5g4][%mdl 32]} 5. Nc3 {[%emt 0:00:13]} Qc7 {[%emt 0:00:16]} 6. Be3 {[%emt 0:00:39]} a6 {[%emt 0:00:15]} 7. Qf3 {[%emt 0:00:40] B48: Sicilian: Taimanov: 5 Nc3 Qc7 6 Be3 a6 without Be2.} Nf6 {[%emt 0:01:15][%cal Of8a3]} 8. O-O-O {[%emt 0:01:33]} Ne5 {[%emt 0:03:11]} 9. Qg3 {[%emt 0:00:33] White is slightly better.} b5 $1 {[%emt 0:01:22]} 10. f4 {[%emt 0:08:35]} Neg4 {[%emt 0:01:21]} 11. Bg1 {[%emt 0:00:55]} b4 {[%emt 0:01:27] [#]} 12. Nd5 $146 {[%emt 0:12:27]} ({Predecessor:} 12. Na4 Nh6 13. Bd3 Nh5 14. Qf3 Nxf4 15. Kb1 Ng6 16. Nb3 Be7 17. Bb6 Qb8 18. Be3 {1-0 Nepomniachtchi,I (2705)-Matlakov,M (2689) Wch Rapid Berlin 2015 (7)}) 12... exd5 $17 {[%emt 0:08:44]} 13. e5 {[%emt 0:00:17] [#]} Nxe5 {[%emt 0:07:35]} 14. fxe5 {[%emt 0:00:19]} Ne4 {[%emt 0:00:27][%mdl 64] Deflection} 15. Qb3 {[%emt 0:03:53]} Bb7 $1 {[%emt 0:04:59]} (15... Qxe5 $6 16. Nf3 Qc7 17. Rxd5 $11) 16. Nf3 {[%emt 0:10:06]} Rc8 {[%emt 0:06:00]} 17. Bd3 {[%emt 0:13:17]} (17. Nd2 $17) 17... Bc5 {[%emt 0:07:05]} 18. Bxe4 {[%emt 0:07:02]} dxe4 {[%emt 0:00:33]} 19. Ng5 {[%emt 0:00:12]} O-O {[%emt 0:02:04]} (19... Qxe5 $2 20. Qxf7+ Kd8 21. Rxd7#) 20. Bxc5 {[%emt 0:03:06]} Qxc5 {[%emt 0:00:29]} 21. Rxd7 {[%emt 0:02:07]} Rc7 {[%emt 0:13:51] Some like it hot} (21... Qxe5 $6 22. Nxf7 Qf4+ 23. Kb1 Rxf7 24. Rxb7 $11) 22. Rxc7 {[%emt 0:03:41]} ({But not} 22. Ne6 $2 fxe6 23. Rxc7 Qxc7 $19) 22... Qxc7 {[%emt 0:00:06]} 23. Qxb4 {[%emt 0:11:45]} Qxe5 {[%emt 0:05:50]} 24. Qxb7 {[%emt 0:02:15] aiming for h4.} Qxg5+ {[%emt 0:00:07][%mdl 4096] Endgame KQR-KQR} 25. Kb1 {[%emt 0:00:02]} Qxg2 {[%emt 0:02:29][%cal Rg2h1]} 26. Re1 {[%emt 0:00:23]} Rd8 {[%emt 0:05:55] Threatens to win with ...Qd2.} 27. a4 {[%emt 0:01:45]} f5 {[%emt 0:01:42]} (27... h6 $17 {White must now prevent ...Re8.} 28. Qe7 Rc8 29. Qxe4 Qxh2) 28. Qxa6 $15 {[%emt 0:05:02]} Qd2 $36 {[%emt 0:03:55][%mdl 2048] Black is more active.} ({Much less strong is} 28... Qxh2 29. Qe6+ Kh8 30. Qxf5 $16) 29. Qc4+ $2 {[%emt 0:08:23][%mdl 8192]} (29. Qe6+ $1 $15 Kh8 30. Rf1) 29... Kh8 $19 {[%emt 0:05:10]} 30. Qe2 {[%emt 0:00:06]} (30. Qc3 Qxc3 31. bxc3) 30... Qb4 $2 {[%emt 0:01:43]} (30... Qxe2 31. Rxe2 Re8) 31. Rd1 {[%emt 0:01:45]} (31. b3 Ra8 32. Ka2) 31... Rxd1+ {[%emt 0:01:23]} 32. Qxd1 {[%emt 0:00:03] KQ-KQ} h6 $2 {[%emt 0:01:35]} (32... Qxa4 $2 {is a self mate.} 33. Qd8+) (32... Qf8 $1 $19 {is more deadly. Strongly threatening ...f4.} 33. a5 f4) 33. c3 $2 {[%emt 0:00:38][%mdl 8192]} (33. Qd8+ $17 Kh7 34. Qd5) 33... Qc5 $2 {[%emt 0:03:34]} (33... Qe7 $19 {has better winning chances.} 34. Kc2 e3) 34. Qd4 $2 {[%emt 0:01:50] [#] Prevents f4} (34. Qd8+ $17 Kh7 35. Qd4) 34... Qe7 $1 {[%emt 0:01:06] ...e3 would be deadly.} 35. Qe3 {[%emt 0:01:05]} Qe5 {[%emt 0:01:33]} 36. Qd4 {[%emt 0:00:23] [#]} Qe8 {[%emt 0:00:43]} 37. Kc1 $2 {[%emt 0:01:58]} (37. Qe3 {only move.} Qxa4 38. Kc1) 37... f4 {[%emt 0:00:31][%cal Bf5f4,Bf4f3,Bf3f2][%mdl 32]} 38. Kd2 {[%emt 0:01:11]} e3+ $2 {[%emt 0:01:09]} (38... Qg6 $19 {...e3+ is the strong threat.} 39. Ke1 Qf5) 39. Ke1 $11 {[%emt 0:00:04]} f3 {[%emt 0:03:25] ( -> ...f2+)} 40. Qf4 $1 {[%emt 0:00:03]} f2+ {[%emt 0:00:20]} 41. Ke2 {[%emt 0:00:03]} Qe6 {[%emt 0:01:19] And now ...Qa6+ would win.} 42. Qf8+ $2 {[%emt 0:02:15][%mdl 8192]} (42. c4 $11) 42... Kh7 {[%emt 0:00:04] Black mates.} 43. Qf4 {[%emt 0:00:10]} g5 {[%emt 0:00:21]} 44. Qd4 {[%emt 0:00:38]} Qf5 {[%emt 0:00:33]} 45. Qa7+ {[%emt 0:00:44]} Kg6 {[%emt 0:00:15]} 46. Qa6+ {[%emt 0:00:34]} Kh5 {[%emt 0:00:11]} 47. Kf1 {[%emt 0:00:10]} Qh3+ {[%emt 0:00:07] Artfully played by Senft.   Weighted Error Value: White=0.83/Black=0.50} 0-1